Cogmind - Beta 13 @@@ ROGUE MODE // 2024.05.18 @ 17:12:54 Player: AverageDoes Result: Destroyed by S-10 Pest with Light Assault Rifle Performance ------------- Evolutions (0) 0 Regions Visited (4) 800 Robots Destroyed (24) 120 Value Destroyed (549) 549 Prototype IDs (2) 40 Alien Tech Used (0) 0 Bonus (367) 367 TOTAL SCORE: 1876 Bonus ------- High Alert Combat Kills 34 Follower Combat Kills 57 Aligned with FarCom 300 Friendly Fire -24 Cogmind --------- Core Integrity 0/250 Matter 188/300 Energy 28/100 System Corruption 0% Temperature Cool (0) Movement Walking (90) Location -9/Mines Parts ------- > --- POWER (1) -------- (None) > --- PROPULSION (2) --- Potential Leg Potential Leg > --- UTILITY (2) ------ Seismic Detector Weapon Shielding > --- WEAPON (2) ------- Mining Laser > --- INVENTORY (5) ---- Flight Unit Flight Unit Flight Unit Small Storage Unit Small Storage Unit Peak State ------------ > --- POWER ------------ (None) > --- PROPULSION ------- Potential Leg Potential Leg > --- UTILITY ---------- Seismic Detector Weapon Shielding > --- WEAPON ----------- Field Lobotomy Kit Mining Laser > --- INVENTORY -------- Flight Unit Small Storage Unit Small Storage Unit [Rating: 33] Favorites ----------- Power Light Ion Engine Engine Light Ion Engine Propulsion Potential Leg Leg Potential Leg Wheel Compact Wheel Flight Unit Flight Unit Utility Weapon Shielding Device Seismic Detector Storage Small Storage Unit Protection Weapon Shielding Weapon Light Assault Rifle Ballistic Gun Light Assault Rifle Launcher Grenade Launcher Special Weapon Mining Laser Build | -11 -10 -10 -10 -9 ------- Run | Yrd Mat Min Exi Min Slots Evolved . | . . . . . Power . | . . . . . Propulsion . | . . . . . Utility . | . . . . . Weapon . | . . . . . Parts Attached 18 | 7 7 . 3 1 Power 2 | 1 1 . . . Engine 2 | 1 1 . . . Core . | . . . . . Reactor . | . . . . . Propulsion 6 | 2 2 . 2 . Treads . | . . . . . Leg 2 | . . . 2 . Wheel 2 | 2 . . . . Hover . | . . . . . Flight 2 | . 2 . . . Utility 4 | 2 2 . . . Device 1 | . 1 . . . Storage 2 | 2 . . . . Processor . | . . . . . Hackware . | . . . . . Protection 1 | . 1 . . . Artifact . | . . . . . Weapon 6 | 2 2 . 1 1 Energy Gun . | . . . . . Energy Cannon . | . . . . . Ballistic Gun 2 | 2 . . . . Ballistic Cannon . | . . . . . Launcher 2 | . 2 . . . Special Weapon 2 | . . . 1 1 Impact Weapon . | . . . . . Slashing Weapon . | . . . . . Piercing Weapon . | . . . . . Special Melee Weapon . | . . . . . Unidentified Prototypes 2 | . . . 2 . Parts Lost 3 | . . 3 . . Power 1 | . . 1 . . Propulsion 1 | . . 1 . . Utility . | . . . . . Weapon 1 | . . 1 . . Highest Loss Streak 3 | . . 3 . . To Critical Strikes . | . . . . . Average Slot Usage (%) 74 | . 97 49 47 79 Engine 4 | . 14 3 . . Leg 10 | . . . 4 28 Wheel 7 | . 23 . . . Flight 5 | . 4 14 11 . Device 11 | . 7 14 14 14 Storage 3 | . 9 . . . Protection 13 | . 11 14 14 14 Ballistic Gun 4 | . 14 . . . Launcher 4 | . 11 3 . . Special Weapon 7 | . . . 3 22 Naked Turns . | . . . . . Heaviest Build 17 | 16 17 8 10 11 Greatest Support 60 | 32 32 8 60 60 Greatest Overweight (x) 2 | . . 1 2 . Average Overweight (x) . | . . . . . Largest Inventory Capacity 8 | 8 8 5 5 5 Average Capacity 5 | 5 6 5 5 5 Most Carried 5 | 5 5 2 4 5 Average Carried 2 | . 1 2 2 4 Final Capacity 8 | 8 5 5 5 5 Final Carried 5 | . 2 2 3 5 Class Distribution -------------------- 100% | Mutant Dominant Class ---------------- Mutant | -10/Materials Mutant | -10/Mines Mutant | -10/Exiles Mutant | -9/Mines Resources | -11 -10 -10 -10 -9 ----------- Run | Yrd Mat Min Exi Min Matter Collected 590 | 285 215 . . 90 Remotely . | . . . . . Salvage Created 629 | 119 472 38 . . Parts 43 | 5 34 3 . 1 Haulers Intercepted . | . . . . . Recyclers Shooed 2 | . 2 . . . Parts Field Recycled . | . . . . . Retrieved Matter . | . . . . . Parts Self-Destructed . | . . . . . Prevented . | . . . . . Kills | -11 -10 -10 -10 -9 ------- Run | Yrd Mat Min Exi Min Combat Hostiles Destroyed 17 | . 15 1 . 1 Guns 6 | . 6 . . . Cannons 1 | . . . . 1 AOE 10 | . 9 1 . . Classes Destroyed 5 | 2 3 . . . Tunneler 1 | 1 . . . . Recycler 3 | 1 2 . . . Watcher 3 | . 3 . . . Swarmer 7 | . 6 . . 1 Grunt 10 | . 9 1 . . Best Kill Streak 6 | 1 6 5 . 1 Combat Bots Only 5 | . 5 5 . 1 Max Kills in Single Turn 2 | 1 2 1 . 1 Gunslinging . | . . . . . Exploded 2 | . 2 1 . . Melee . | . . . . . Uniques/NPCs Destroyed . | . . . . . Combat | -11 -10 -10 -10 -9 -------- Run | Yrd Mat Min Exi Min Hostile Shots Fired 83 | . 43 23 . 17 Missed 34 | . 16 12 . 6 Damage Taken 639 | . 319 217 . 103 Core 256 | . 104 123 . 29 Absorbed by Shields . | . . . . . Redirected to Shielding 33 | . 15 12 . 6 Core Remaining (%) 100 | 100 . . . . Volleys Fired 68 | 6 48 5 . 9 Largest 2 | 2 2 1 . 2 Hottest 100 | 40 50 30 . 100 Shots Fired 98 | 12 70 5 . 11 Gun 62 | 12 50 . . . Cannon . | . . . . . Launcher 25 | . 20 5 . . Special 11 | . . . . 11 Kinetic 62 | 12 50 . . . Thermal 6 | . . . . 6 Explosive 25 | . 20 5 . . Electromagnetic . | . . . . . Robot Hit Streak 6 | 2 6 3 . 5 Robot Miss Streak 3 | 3 3 1 . 2 Penetration Max . | . . . . . Secondary Targets 1 | . 1 . . . Max Gunslinging Chain 1 | . 1 . . . Shots Hit Robots 45 | 5 30 3 . 7 Core Hits 44 | 2 36 4 . 2 Critical Kills 1 | . 1 . . . Critical Parts Destroyed . | . . . . . Critical Strikes 1 | . 1 . . . Destroy 1 | . 1 . . . Melee Attacks . | . . . . . Impact . | . . . . . Slashing . | . . . . . Piercing . | . . . . . Sneak Attacks . | . . . . . Combat Hostiles . | . . . . . Follow-up Attacks . | . . . . . Damage Inflicted 1475 | 71 1166 178 . 60 Guns 348 | 71 277 . . . Cannons . | . . . . . Explosions 1067 | . 889 178 . . Melee . | . . . . . Ramming 12 | . . . . 12 Kinetic 348 | 71 277 . . . Thermal 48 | . . . . 48 Explosive 1067 | . 889 178 . . Electromagnetic . | . . . . . Impact . | . . . . . Slashing . | . . . . . Piercing . | . . . . . Highest Corruption . | . . . . . Average Corruption . | . . . . . Corruption Purged . | . . . . . Corruption Blocked . | . . . . . Overload Shots . | . . . . . Overflow Damage 46 | . 46 . . . Projectiles . | . . . . . Explosions 46 | . 46 . . . Melee . | . . . . . Knockbacks . | . . . . . Impact . | . . . . . Kinetic . | . . . . . Secondary . | . . . . . Self-Inflicted Damage 93 | . 35 58 . . Shots 5 | . 2 3 . . Rammed . | . . . . . Targets Rammed 4 | . . . . 4 Kicked 4 | . . . . 4 Crushed . | . . . . . Highest Temperature 36 | . 36 2 . . Average Temperature 8 | . 8 2 . . Received Heat Transfer 170 | . 111 50 . 9 Siege Activations . | . . . . . Robots Corrupted . | . . . . . Combat Hostiles . | . . . . . Parts Fried . | . . . . . Impact Corruptions . | . . . . . Robots Melted . | . . . . . Combat Hostiles . | . . . . . Parts Melted . | . . . . . Heat Transferred 100 | . . . . 100 Parts Sabotaged . | . . . . . Parts Stolen . | . . . . . Parts Stripped . | . . . . . Power Chain Reactions . | . . . . . Alert | -11 -10 -10 -10 -9 ------- Run | Yrd Mat Min Exi Min Peak Influence 625 | 10 625 301 . 85 Initial 243 | . 6 243 . . Average 142 | 5 266 279 . 29 Maximum Alert Level 2 | . 2 1 . . Low Security (%) 72 | 100 49 . . 100 Level 1 17 | . 27 100 . . Level 2 10 | . 23 . . . Level 3 . | . . . . . Level 4 . | . . . . . Level 5 . | . . . . . High Security . | . . . . . Max Security . | . . . . . Squads Dispatched 3 | . 3 . . . Investigation 1 | . 1 . . . Extermination . | . . . . . Reinforcement 2 | . 2 . . . Assault . | . . . . . Garrison . | . . . . . Intercept . | . . . . . Searches Triggered . | . . . . . Construction Impeded . | . . . . . Haulers Reinforced . | . . . . . Active Scanning Responses . | . . . . . Cargo Convoy Interrupts . | . . . . . Stealth | -11 -10 -10 -10 -9 --------- Run | Yrd Mat Min Exi Min Distress Signals . | . . . . . Communications Jammed . | . . . . . Distress Signals . | . . . . . Times Spotted 49 | . 20 17 . 12 Peak Tracking Total 16 | . 4 16 . 4 Tactical Retreats 3 | . 1 1 . 1 Traps | -11 -10 -10 -10 -9 ------- Run | Yrd Mat Min Exi Min Traps Triggered 2 | . 2 . . . Indirectly . | . . . . . Trap Hack Attempts . | . . . . . Triggered . | . . . . . Disarmed . | . . . . . Reprogrammed . | . . . . . Reused . | . . . . . Traps Extracted . | . . . . . Installed . | . . . . . Triggered . | . . . . . Machines | -11 -10 -10 -10 -9 ---------- Run | Yrd Mat Min Exi Min Machines Disabled 4 | . 3 1 . . Max in Single Turn 1 | . 1 1 . . Machines Repaired . | . . . . . Machines Dismantled . | . . . . . Machines Sabotaged . | . . . . . Overloaded Fab Kills . | . . . . . Hacking | -11 -10 -10 -10 -9 --------- Run | Yrd Mat Min Exi Min Machines Accessed 7 | . 3 . 4 . Terminals 3 | . 3 . . . Fabricators . | . . . . . Repair Stations . | . . . . . Recycling Units . | . . . . . Scanalyzers . | . . . . . Garrison Access . | . . . . . Total Hacks 57 | . 8 . 49 . Successful 52 | . 3 . 49 . Failed 5 | . 5 . . . Catastrophic . | . . . . . Database Lockouts . | . . . . . Manual 4 | . 1 . 3 . Terminals 8 | . 8 . . . Fabricators . | . . . . . Repair Stations . | . . . . . Recycling Units . | . . . . . Scanalyzers . | . . . . . Garrison Access . | . . . . . Terminal Hacks 52 | . 3 . 49 . Record 49 | . . . 49 . Repair Station Index 1 | . 1 . . . Alert Level 1 | . 1 . . . Maintenance Status 1 | . 1 . . . Fabricator Hacks . | . . . . . Repair Station Hacks . | . . . . . Recycling Unit Hacks . | . . . . . Scanalyzer . | . . . . . Garrison Access Hacks . | . . . . . Unauthorized Hacks . | . . . . . Terminals . | . . . . . Fabricators . | . . . . . Repair Stations . | . . . . . Recycling Units . | . . . . . Scanalyzers . | . . . . . Garrison Access . | . . . . . Data Cores Recovered . | . . . . . Used . | . . . . . Hacking Detections 2 | . 2 . . . Full Trace Events 2 | . 2 . . . Feedback Events . | . . . . . Feedback Blocked . | . . . . . Robot Schematics Acquired . | . . . . . Robots Built . | . . . . . Authchips . | . . . . . Time . | . . . . . Total Robot Build Rating . | . . . . . Part Schematics Acquired . | . . . . . Parts Built . | . . . . . Authchips . | . . . . . Time . | . . . . . Total Part Build Rating . | . . . . . Parts Repaired . | . . . . . Time . | . . . . . Parts Recycled . | . . . . . Recycled Matter . | . . . . . Retrieved Matter . | . . . . . Retrieved Components . | . . . . . Parts Scanalyzed . | . . . . . Part Schematics Acquired . | . . . . . Parts Damaged . | . . . . . Bothacking | -11 -10 -10 -10 -9 ------------ Run | Yrd Mat Min Exi Min Used RIF Installer . | . . . . . Robots Hacked . | . . . . . Non-combat . | . . . . . Combat . | . . . . . Robot Hacks Applied . | . . . . . Relay Couplers Released . | . . . . . Fabnet Peak Effective % . | . . . . . Robots Rewired . | . . . . . Allies Hacked . | . . . . . Hacks Repelled . | . . . . . Allies | -11 -10 -10 -10 -9 -------- Run | Yrd Mat Min Exi Min Total Allies 5 | . . . . 5 Largest Group 3 | . . . . 3 Highest-Rated Group 55 | . . . . 55 Highest-Rated Ally 31 | . . . . 31 Total Orders . | . . . . . Ally Attacks 11 | . . . . 11 Total Damage 119 | . . . . 119 Kills 3 | . . . . 3 Allies Corrupted . | . . . . . Allies Melted . | . . . . . Field Lobotomies 4 | . . . . 4 Intel | -11 -10 -10 -10 -9 ------- Run | Yrd Mat Min Exi Min Robot Analysis Total . | . . . . . Derelict Logs Recovered 3 | . . 1 . 2 Drone Launches . | . . . . . Drone Recoveries . | . . . . . Exploration | -11 -10 -10 -10 -9 ------------- Run | Yrd Mat Min Exi Min Turns Passed 1200 | 93 371 44 344 348 Spaces Moved 1584 | 70 309 79 777 349 Core 14 | 14 . . . . Treads . | . . . . . Legs 450 | . . . 101 349 Wheels 257 | 56 201 . . . Hover . | . . . . . Flight 863 | . 108 79 676 . Fastest Speed 37 | 50 37 37 40 60 Average Speed 61 | 90 77 40 43 86 Slowest Speed 200 | 100 100 120 200 90 Overloaded Moves 139 | . . . 101 38 Propulsion Burnouts . | . . . . . Robots Hopped . | . . . . . Cave-ins Triggered . | . . . . . Exploration Rate (%) 47 | 4 58 19 93 64 Regions Visited 4 Branch Regions 3 Pre-discovered Areas 2 | . . 1 1 . Known Exits Taken . | . . . . . Unknown Exits Taken 4 | 1 1 1 1 . Scrap Searched 1 | . . . . 1 Spaces Dug 5 | . 5 . . . Terrain Destroyed 157 | . 125 28 . 4 Melee . | . . . . . Projectile 4 | . . . . 4 AOE 153 | . 125 28 . . Terrain Rammed . | . . . . . Walls Destroyed . | . . . . . Machines Disabled . | . . . . . Actions | -11 -10 -10 -10 -9 --------- Run | Yrd Mat Min Exi Min Total 1698 | 89 376 85 782 366 Wait 2 | . . 2 . . Move 1580 | 69 308 78 776 349 Hop . | . . . . . Pick Up 22 | 7 9 . 3 3 Fast Attach . | . . . . . Attach 14 | 7 4 . 2 1 Detach . | . . . . . Swap 4 | . 3 . 1 . Drop 4 | . 4 . . . Fire 68 | 6 48 5 . 9 Melee . | . . . . . Ram . | . . . . . Kick 4 | . . . . 4 Crush . | . . . . . Escape Stasis . | . . . . . Rewire . | . . . . . Trap . | . . . . . Miscellaneous . | . . . . . Route ------- -11/Scrapyard -10/Materials (discovered 3 exits: [*Mat] / [*Min x2]) -10/Mines -10/Exiles (discovered 2 exits: [*Min x2]) -9/Mines (discovered 2 exits: [*Mat x2]) History --------- Turn | Location | Event 3 | -11/Scrapyard | Discovered new exit (range 15) 94 | -11/Scrapyard | Entered Materials 171 | -10/Materials | Discovered new exit (range 16) 311 | -10/Materials | Build established: Mutant 339 | -10/Materials | Discovered new exit (range 15) 432 | -10/Materials | Discovered new exit (range 3) 465 | -10/Materials | Entered Mines 479 | -10/Mines | Core integrity fell below 50% 481 | -10/Mines | Learned location of Zion (-7) 490 | -10/Mines | Assembled infested the area 500 | -10/Mines | Core integrity fell below 20% 502 | -10/Mines | Met 8R-AWN 504 | -10/Mines | Discovered new exit (range 5) 507 | -10/Mines | Lost 3 parts (1p1n1w) 509 | -10/Mines | Entered Exiles 516 | -10/Exiles | Discovered new exit (range 15) 528 | -10/Exiles | Welcomed by 8R-AWN 536 | -10/Exiles | Met EX-HEX 548 | -10/Exiles | Met EX-BIN 582 | -10/Exiles | Aligned with FarCom system 582 | -10/Exiles | Given EX-Vault access code 616 | -10/Exiles | Met EX-DEC 643 | -10/Exiles | Discovered new exit (range 14) 686 | -10/Exiles | Visited The Gauntlet 777 | -10/Exiles | Opened EX-Vault 778 | -10/Exiles | Found Prototype Special Weapon 779 | -10/Exiles | Identified Field Lobotomy Kit 786 | -10/Exiles | Found Prototype Leg 789 | -10/Exiles | Found Prototype Leg 790 | -10/Exiles | Identified Potential Leg (x2) 806 | -10/Exiles | Warned to stay clear of 0b10 Research branches 832 | -10/Exiles | Learned about 8R-AWN's background 853 | -10/Exiles | Stole two prototypes: Potential Leg, Field Lobotomy Kit 853 | -10/Exiles | Entered Mines 856 | -9/Mines | Received a Mining Laser from a helpful Derelict 898 | -9/Mines | Assimilated S-10 Pest with FLK Orb 948 | -9/Mines | Learned 4 Materials zone layouts 966 | -9/Mines | Learned Materials emergency access door positions 995 | -9/Mines | Discovered new exit (range 8) 1025 | -9/Mines | Assimilated G-47 Trooper with FLK Orb 1037 | -9/Mines | Assimilated G-34 Mercenary with FLK Orb 1061 | -9/Mines | Assimilated G-47 Trooper with FLK Orb 1143 | -9/Mines | Discovered new exit (range 7) 1201 | -9/Mines | Destroyed by S-10 Pest with Light Assault Rifle Last Messages --------------- Pest 2a destroyed. G-34 Mercenary destroyed. Trooper 2a destroyed. Acquired 21 matter. Kicked G-34 Mercenary. G-34 Mercenary assimilated. Acquired Flight Unit. U-05 Engineer builds a Wall. Kicked U-05 Engineer out of the way. Kicked U-05 Engineer. G-47 Trooper assimilated. Field Lobotomy Kit expended. Assimilation attempt on Trooper 2b failed. G-34 Mercenary destroyed. Acquired 47 matter. EXIT=FOUND 0X-7SP(g): "You look like you can take it from here!" 0X-7SP(g) slips back into the shadows. S-10 Pest destroyed. Map ----- +----------------------------------------------------+ | | | | | | | | | | | | | | | | | | | ????????????????????????????????????????????? | | ???????????????????????#########????????????? | | ?????????????????????### ##???????????? | | ????????????????????## #???????????? | | ????????????????????# #???????????? | | ????????????????????# ### ##???????????? | | ????????????????????## ##?## #????????????? | | ?????????????????????######## #????????????? | | ????????????????????????# =[#????????????? | | ????????????????????????# #### #????????????? | | ????????????????????????# #??#*#?###########? | | ????????????????????????# #??# #?# """" #? | | ????????????????????????# #??# #?# """" #? | | ???????????????????????## #??# #?# """" #? | | ???????????????????????#;s#??# #?# [ #? | | ???????????????????????#=%#??# #?# % #? | | #####???????????????#####@#??# #?####*####??? | | #???????????????# gg #?## ######=#?????? | | """ #???????????????# #####?# * #?????? | | """ #???????????????# #?????# #######[#?????? | | """ #??????????###??# #?????# #??#### #?????? | | #?????????? #??# #?????# #?????# #?????? | | #??????????# #??# #?????# #?????# #?????? | | ## ##?????###### #??# #?????# #?????# #?????? | | ?# #??????# #??# #?????# #?????# #?????? | | ?# ######?# #### #??# #?????# #?????# #?????? | | ?# #?# #??# #### #?????# #?????# #?????? | | ?###### #?# #??# #?????# #?????# #?????? | | ??????# #?# #??# ######?????# #?????# #?????? | | ??????# #?# #??# #?????????## ####??# #?????? | | ??????# #?# #??# #?????????# #??# #?????? | | ??????# #?# #### ########### #??# #?????? | | ??????# ### s #### #?????? | | ??????# ############## < #?????? | | ?????# ##??########### ######?????? | | ?????# ##???# """ #??????????? | | ???### ##????# """ #??????????? | | ?## ## #?????# ###### # """ #??????????? | | ## ### ##?????# #????# # #??????????? | | # #####??????# #????# #######??????????? | | ????####???# ##???# ##########???????? | +----------------------------------------------------+ Best States ------------- Heat Dissipation 25 Energy Generation 10 Energy Capacity 125 Matter Stores 300 Matter Capacity 300 Sight Range 16 Terrain Scan Density 10 Weapon Shielding 33 Evasion (%) 63 Item Schematics ----------------- None Robot Schematics ------------------ None Fabricated ------------ Nothing Alien Tech Used ----------------- None Achievements -------------- I Survived The Infestation Librarian Challenges ------------ None Game ------ Seed VortexHypercooledScrap Manual? 0 Play Time 00:24:02 Cumulative 3.2 hours Start 2024.05.18 @ 14:43:31 End 2024.05.18 @ 17:12:54 Sessions 2 Manual Loads 0 Difficulty Rogue Special Mode None Game No. 7 Rogue 7 Adventurer 0 Explorer 0 Win Type - Total 0 Types 0/0/0/0/0/0/0/0/0 Lore% 12 Gallery% 8 Achievement% 8 Wizard Run 0 Options --------- Layout 1 ASCII 0 Keyboard 0 Movement Mouse Keybinds 0 Fullscreen 1 Font 32/SmallcapsGlow Map View 50x35 Zoom Use 0% Tactical HUD 0 Map Filters NONE Filters NONE Steam 1 RUN: ae484720-d710-4451-b6c8-5d2093d2b30b